fUSD/lending_fUSD_20240521
["ID","MTS","AMOUNT","RATE_DAILY","PERIOD"]
[327619816,1716253881852,-1763.02,0.00039726,6]
[327619817,1716253881861,-2177.92,0.00039726,6]
[327619818,1716253881870,-595.62,0.00039726,6]
[327619819,1716253881880,-950.94,0.00039726,6]
[327619820,1716253881892,-1947.64,0.00039726,6]
[327619821,1716253881901,-1016.17,0.00039726,6]
[327619822,1716253881910,-558.05,0.00039726,6]
[327619823,1716253881919,-1519.78,0.00039726,6]
[327619824,1716253881929,-692.08,0.00039726,6]
[327619825,1716253881940,-1272.37,0.00039726,6]
[327619826,1716253881950,-1273.89,0.00039726,6]
[327619827,1716253881960,-1897.49,0.00039726,6]
[327619828,1716253881971,-3762.51,0.00039726,6]
[327619829,1716253881982,-1205.13,0.00039726,6]
[327619830,1716253881993,-1822.24,0.00039726,6]
[327619831,1716253882004,-509.33,0.00039726,6]
[327619832,1716253882015,-2425.85,0.00039726,6]
[327619833,1716253882025,-2685.34,0.00039726,6]
[327619834,1716253882035,-2728.24,0.00039726,6]
[327619835,1716253882045,-1303.77,0.00039726,6]
[327619836,1716253882055,-500.0,0.00039726,6]
[327619837,1716253882065,-2884.63,0.00039726,6]
[327619838,1716253882077,-500.0,0.00039726,6]
[327619839,1716253882087,-1228.16,0.00039726,6]
[327619840,1716253882096,-1321.1,0.00039726,6]
[327619841,1716253882107,-500.0,0.00039726,6]
[327619842,1716253882116,-500.0,0.00039726,6]
[327619843,1716253882125,-1240.84,0.00039726,6]
[327619844,1716253882135,-843.58,0.00039726,6]
[327619845,1716253882144,-2577.26,0.00039726,6]
[327619846,1716253882153,-1671.16,0.00039726,6]
[327619847,1716253882163,-1265.93,0.00039726,6]
[327619848,1716253882172,-2135.44,0.00039726,6]
[327619849,1716253882182,-500.0,0.00039726,6]
[327619850,1716253882193,-30907.2,0.00039726,6]
[327619851,1716253882202,-1090.89,0.00039726,6]
[327619852,1716253882211,-500.0,0.00039726,6]
[327619853,1716253882220,-2536.19,0.00039726,6]
[327619854,1716253882229,-635.53,0.00039726,6]
[327619855,1716253882238,-436.77248744,0.00039726,6]
[327619856,1716253882247,-2749.19,0.00039726,6]
[327619857,1716253882256,-3076.91,0.00039726,6]
[327619858,1716253882265,-7102.47,0.00039726,6]
[327619859,1716253882275,-3153.1,0.00039726,6]
[327619860,1716253882285,-447.9226509,0.00039726,6]
[327619861,1716253882295,-500.0,0.00039726,6]
[327619862,1716253882304,-1940.06,0.00039726,6]
[327619863,1716253882313,-1804.08,0.00039726,6]
[327619864,1716253882322,-500.0,0.00039726,6]
[327619865,1716253882331,-4804.5,0.00039726,6]
[327619866,1716253882340,-500.0,0.00039726,6]
[327619867,1716253882350,-500.0,0.00039726,6]
[327619868,1716253882360,-7125.24,0.00039726,6]
[327619869,1716253882369,-1667.94,0.00039726,6]
[327619870,1716253882379,-1757.85,0.00039726,6]
[327619871,1716253882388,-899.09,0.00039726,6]
[327619872,1716253882397,-1904.37,0.00039726,6]
[327619873,1716253882406,-500.0,0.00039726,6]
[327619874,1716253882416,-500.0,0.00039726,6]
[327619875,1716253882426,-1884.29,0.00039726,6]
[327619876,1716253882436,-1044.57,0.00039726,6]
[327619877,1716253882449,-500.0,0.00039726,6]
[327619878,1716253882459,-500.0,0.00039726,6]
[327619879,1716253882468,-1614.24,0.00039726,6]
[327619880,1716253882477,-5073.66,0.00039726,6]
[327619881,1716253882486,-13398.81,0.00039726,6]
[327619882,1716253882496,-860.18,0.00039726,6]
[327619883,1716253882504,-454.18106834,0.00039726,6]
[327619884,1716253882514,-13097.45,0.00039726,6]
[327619885,1716253882523,-500.0,0.00039726,6]
[327619886,1716253882532,-1645.47,0.00039726,6]
[327619887,1716253882542,-836.34,0.00039726,6]
[327619888,1716253882551,-500.0,0.00039726,6]
[327619889,1716253882561,-620.45,0.00039726,6]
[327619890,1716253882570,-500.0,0.00039726,6]
[327619891,1716253882579,-500.0,0.00039726,6]
[327619892,1716253882588,-1148.01,0.00039726,6]
[327619893,1716253882597,-5763.12,0.00039726,6]
[327619894,1716253882606,-500.0,0.00039726,6]
[327619895,1716253882616,-500.0,0.00039726,6]
[327619896,1716253882625,-1241.4,0.00039726,6]
[327619897,1716253882634,-739.28,0.00039726,6]
[327619898,1716253882643,-319.79469026,0.00039726,6]
[327619899,1716253882653,-2921.96,0.00039726,6]
[327619900,1716253882662,-500.0,0.00039726,6]
[327619901,1716253882672,-843.18,0.00039726,6]
[327619902,1716253882683,-1534.44,0.00039726,6]
[327619903,1716253882697,-693.69,0.00039726,6]
[327619904,1716253882708,-1313.48,0.00039726,6]
[327619905,1716253882724,-3596.19,0.00039726,6]
[327619906,1716253882734,-2730.97,0.00039726,6]
[327619907,1716253882744,-890.37,0.00039726,6]
[327619908,1716253882753,-2677.12,0.00039726,6]
[327619909,1716253882764,-500.0,0.00039726,6]
[327619910,1716253882774,-1304.15,0.00039726,6]
[327619911,1716253882783,-500.0,0.00039726,6]
[327619912,1716253882791,-1923.38,0.00039726,6]
[327619913,1716253882801,-500.0,0.00039726,6]
[327619914,1716253882811,-1167.65,0.00039726,6]
[327619915,1716253882819,-5360.27,0.00039726,6]
[327619916,1716253882829,-862.27,0.00039726,6]
[327619917,1716253882838,-1200.58,0.00039726,6]
[327619918,1716253882847,-348.71824041,0.00039726,6]
[327619919,1716253882857,-689.47,0.00039726,6]
[327619920,1716253882866,-4396.94,0.00039726,6]
[327619921,1716253882876,-1207.05,0.00039726,6]
[327619922,1716253882885,-1613.36,0.00039726,6]
[327619923,1716253882894,-545.15,0.00039726,6]
[327619924,1716253882904,-1381.45,0.00039726,6]
[327619925,1716253882915,-1658.87,0.00039726,6]
[327619926,1716253882924,-2769.83,0.00039726,6]
[327619927,1716253882933,-878.44,0.00039726,6]
[327619928,1716253882945,-500.0,0.00039726,6]
[327619929,1716253882954,-500.0,0.00039726,6]
[327619930,1716253882964,-527.88,0.00039726,6]
[327619931,1716253882974,-2070.86,0.00039726,6]
[327619932,1716253882983,-2078.18,0.00039726,6]
[327619933,1716253882993,-1184.33,0.00039726,6]
[327619934,1716253883002,-794.8,0.00039726,6]
[327619935,1716253883012,-1103.78,0.00039726,6]
[327619936,1716253883021,-2137.07,0.00039726,6]
[327619937,1716253883032,-3564.04,0.00039726,6]
[327619938,1716253883042,-809.14,0.00039726,6]
[327619939,1716253883051,-500.0,0.00039726,6]
[327619940,1716253883061,-583.75,0.00039726,6]
[327619941,1716253883070,-19757.08,0.00039726,6]
[327619942,1716253883079,-500.0,0.00039726,6]
[327619943,1716253883090,-3127.95,0.00039726,6]
[327619944,1716253883100,-833.97,0.00039726,6]
[327619945,1716253883109,-1428.46,0.00039726,6]
[327619946,1716253883119,-656.27,0.00039726,6]
[327619947,1716253883129,-1958.86,0.00039726,6]
[327619948,1716253883139,-30586.79,0.00039726,6]
[327619949,1716253883149,-1663.25,0.00039726,6]
[327619950,1716253883158,-1024.09,0.00039726,2]
[327619951,1716253883167,-3208.72,0.00039726,6]
[327619952,1716253883177,-840.24,0.00039726,6]
[327619953,1716253883187,-2333.5,0.00039726,6]
[327619954,1716253883202,-1950.27,0.00039726,6]
[327619955,1716253883212,-2160.15,0.00039726,6]
[327619956,1716253883222,-500.0,0.00039726,6]
[327619957,1716253883231,-1298.52,0.00039726,6]
[327619958,1716253883241,-500.0,0.00039726,6]
[327619959,1716253883250,-3257.34,0.00039726,6]
[327619960,1716253883260,-621.442955,0.00039726,14]
[327619961,1716253883269,-755.14,0.00039726,6]
[327619962,1716253883278,-1951.3,0.00039726,6]
[327619963,1716253883288,-1746.08,0.00039726,6]
[327619964,1716253883297,-836.3,0.00039726,6]
[327619965,1716253883307,-959.35,0.00039726,6]
[327619966,1716253883316,-621.442955,0.00039726,14]
[327619967,1716253883325,-844.11,0.00039726,30]
[327619968,1716253883335,-1939.65,0.00039726,6]
[327619969,1716253883344,-500.0,0.00039726,6]
[327619970,1716253883353,-1631.5,0.00039726,6]
[327619971,1716253883362,-3216.03,0.00039726,6]
[327619972,1716253883372,-1798.04,0.00039726,6]
[327619973,1716253883381,-2075.97,0.00039726,6]
[327619974,1716253883391,-14528.74,0.00039726,6]
[327619975,1716253883400,-500.0,0.00039726,6]
[327619976,1716253883410,-2949.33,0.00039726,6]
[327619977,1716253883420,-500.0,0.00039726,6]
[327619978,1716253883429,-1176.66,0.00039726,6]
[327619979,1716253883444,-1836.05,0.00039726,6]
[327619980,1716253883454,-1215.2,0.00039726,6]
[327619981,1716253883463,-1206.31,0.00039726,6]
[327619982,1716253883472,-911.21,0.00039726,6]
[327619983,1716253883481,-2549.52,0.00039726,6]
[327619984,1716253883490,-500.0,0.00039726,6]
[327619985,1716253883499,-1271.11,0.00039726,6]
[327619986,1716253883509,-1963.2,0.00039726,6]
[327619987,1716253883518,-1287.76,0.00039726,6]
[327619988,1716253883527,-500.0,0.00039726,6]
[327619989,1716253883536,-787.41,0.00039726,6]
[327619990,1716253883545,-2041.37,0.00039726,6]
[327619991,1716253883555,-4727.93,0.00039726,6]
[327619992,1716253883564,-500.0,0.00039726,6]
[327619993,1716253883574,-725.76,0.00039726,6]
[327619994,1716253883583,-500.0,0.00039726,6]
[327619995,1716253883593,-940.25,0.00039726,6]
[327619996,1716253883602,-500.0,0.00039726,6]
[327619997,1716253883612,-11207.82,0.00039726,6]
[327619998,1716253883622,-500.0,0.00039726,6]
[327619999,1716253883632,-3429.14,0.00039726,6]
[327620000,1716253883642,-1310.86,0.00039726,6]
[327620001,1716253883652,-7702.29,0.00039726,6]
[327620002,1716253883662,-1652.48,0.00039726,6]
[327620003,1716253883671,-1102.4,0.00039726,6]
[327620004,1716253883680,-2767.81,0.00039726,6]
[327620005,1716253883695,-1593.28,0.00039726,6]
[327620006,1716253883705,-500.0,0.00039726,6]
[327620007,1716253883717,-1498.6,0.00039726,6]
[327620008,1716253883726,-711.06,0.00039726,6]
[327620009,1716253883736,-1615.49,0.00039726,6]
[327620010,1716253883750,-927.41,0.00039726,6]
[327620011,1716253883759,-577.62,0.00039726,6]
[327620012,1716253883769,-500.0,0.00039726,6]
[327620013,1716253883779,-1922.15,0.00039726,6]
[327620014,1716253883788,-1369.43,0.00039726,6]
[327620015,1716253883798,-500.0,0.00039726,6]
[327620016,1716253883808,-2072.22,0.00039726,6]
[327620017,1716253883820,-1578.87,0.00039726,6]
[327620018,1716253883830,-267.30608525,0.00039726,6]
[327620019,1716253883840,-464.7,0.00039726,6]
[327620020,1716253883849,-1795.59,0.00039726,6]
[327620021,1716253883858,-519.07,0.00039726,6]
[327620022,1716253883868,-926.58,0.00039726,6]
[327620023,1716253883878,-1413.58,0.00039726,6]
[327620024,1716253883888,-10796.43,0.00039726,6]
[327620025,1716253883897,-5964.25,0.00039726,6]
[327620026,1716253883907,-947.81,0.00039726,6]
[327620027,1716253883917,-1046.79,0.00039726,6]
[327620028,1716253883927,-3101.42,0.00039726,6]
[327620029,1716253883936,-2071.94,0.00039726,6]
[327620030,1716253883950,-358.46200192,0.00039726,6]
[327620031,1716253883959,-1958.94,0.00039726,6]
[327620032,1716253883969,-1534.32,0.00039726,6]
[327620033,1716253883978,-507.11,0.00039726,6]
[327620034,1716253883988,-7168.9,0.00039726,6]
[327620035,1716253883998,-500.36,0.00039726,6]
[327620036,1716253884008,-1415.86,0.00039726,6]
[327620037,1716253884017,-3927.07,0.00039726,6]
[327620038,1716253884027,-6760.48,0.00039726,6]
[327620039,1716253884037,-736.01,0.00039726,6]
[327620040,1716253884046,-500.0,0.00039726,6]
[327620041,1716253884056,-1044.3,0.00039726,6]
[327620042,1716253884065,-1483.85,0.00039726,6]
[327620043,1716253884075,-5484.04,0.00039726,6]
[327620044,1716253884084,-633.44,0.00039726,6]
[327620045,1716253884094,-1061.32,0.00039726,6]
[327620046,1716253884103,-5038.42,0.00039726,6]
[327620047,1716253884112,-2978.24,0.00039726,6]
[327620048,1716253884122,-13697.24,0.00039726,6]
[327620049,1716253884131,-500.0,0.00039726,6]
[327620050,1716253884141,-1523.96,0.00039726,6]
[327620051,1716253884151,-3532.36,0.00039726,6]
[327620052,1716253884160,-691.31,0.00039726,6]
[327620053,1716253884169,-811.02,0.00039726,6]
[327620054,1716253884179,-3073.33,0.00039726,6]
[327620055,1716253884188,-926.06,0.00039726,6]
[327620056,1716253884202,-1044.81,0.00039726,6]
[327620057,1716253884212,-1455.14,0.00039726,6]
[327620058,1716253884221,-2047.81,0.00039726,6]
[327620059,1716253884230,-3188.64,0.00039726,6]
[327620060,1716253884240,-1592.91,0.00039726,6]
[327620061,1716253884249,-933.81,0.00039726,6]
[327620062,1716253884259,-3031.97,0.00039726,6]
[327620063,1716253884268,-1207.33,0.00039726,6]
[327620064,1716253884277,-500.0,0.00039726,6]
[327620065,1716253884287,-205.19014488,0.00039726,6]
[327620066,1716253884296,-3116.99,0.00039726,6]
[327620067,1716253884306,-3434.1,0.00039726,6]
[327620068,1716253884315,-1027.67,0.00039726,6]
[327620069,1716253884325,-1175.8,0.00039726,6]
[327620070,1716253884334,-4452.68,0.00039726,6]
[327620071,1716253884343,-500.0,0.00039726,6]
[327620072,1716253884352,-500.0,0.00039726,6]
[327620073,1716253884362,-368.33755752,0.00039726,6]
[327620074,1716253884372,-1088.9,0.00039726,6]
[327620075,1716253884381,-744.7,0.00039726,6]
[327620076,1716253884391,-773.26,0.00039726,6]
[327620077,1716253884400,-1288.19,0.00039726,6]
[327620078,1716253884409,-3557.39,0.00039726,6]
[327620079,1716253884418,-669.1,0.00039726,6]
[327620080,1716253884427,-5220.31,0.00039726,6]
[327620081,1716253884437,-1801.55,0.00039726,6]
[327620082,1716253884449,-4125.68,0.00039726,6]
[327620083,1716253884459,-962.5,0.00039726,6]
[327620084,1716253884469,-4012.45,0.00039726,6]
[327620085,1716253884480,-7676.63,0.00039726,6]
[327620086,1716253884489,-1702.18,0.00039726,6]
[327620087,1716253884499,-1505.78,0.00039726,6]
[327620088,1716253884509,-1129.33,0.00039726,6]
[327620089,1716253884519,-2623.88,0.00039726,6]
[327620090,1716253884529,-3225.41,0.00039726,6]
[327620091,1716253884539,-1990.39,0.00039726,6]
[327620092,1716253884548,-7840.8,0.00039726,6]
[327620093,1716253884558,-1890.61,0.00039726,6]
[327620094,1716253884568,-1500.91,0.00039726,6]
[327620095,1716253884578,-758.99,0.00039726,6]
[327620096,1716253884589,-1572.53,0.00039726,6]
[327620097,1716253884598,-1657.9,0.00039726,6]
[327620098,1716253884608,-500.0,0.00039726,6]
[327620099,1716253884618,-1108.32,0.00039726,6]
[327620100,1716253884628,-500.0,0.00039726,6]
[327620101,1716253884639,-500.0,0.00039726,6]
[327620102,1716253884649,-500.0,0.00039726,6]
[327620103,1716253884659,-500.0,0.00039726,6]
[327620104,1716253884669,-500.0,0.00039726,6]
[327620105,1716253884678,-543.36,0.00039726,6]
[327620106,1716253884688,-301.91133,0.00039726,2]
[327620107,1716253884701,-221.0,0.0003979,2]
[327620108,1716253884713,-207.0,0.0003979,2]
[327620109,1716253884722,-151.0,0.00039791,2]
[327620110,1716253884732,-1587.15228477,0.00039824,13]
[327620111,1716253884744,-672.38564022,0.0003984,10]
[327620112,1716253884755,-1882.99904087,0.00039847,2]
[327620113,1716253884765,-200.0,0.00039847,2]
[327620114,1716253884775,-1275.64,0.00039863,30]
[327620115,1716253884784,-1275.64,0.00039863,30]
[327620116,1716253884795,-241.53,0.0003987,2]
[327620117,1716253884806,-28817.66622256,0.0003988,15]
[327620118,1716253884828,-99543.48547205,0.0003988,14]
[327620119,1716253884856,-780.0,0.00039887,2]
[327620120,1716253884891,-453.9806,0.00039888,7]
[327620121,1716253884933,-26706.5163085,0.000399,30]
[327620122,1716253884981,-176.87029013,0.000399,13]
[327620123,1716253885026,-180.30626957,0.000399,2]
[327620124,1716253885052,-204.20972862,0.000399,2]
[327620125,1716253885064,-153.7801552,0.000399,7]
[327620126,1716253885075,-153.7801552,0.000399,7]
[327620127,1716253885085,-153.7801552,0.000399,7]
[327620128,1716253885096,-153.7801552,0.000399,7]
[327620129,1716253885106,-153.7801552,0.000399,7]
[327620130,1716253885117,-153.7801552,0.000399,7]
[327620131,1716253885126,-153.7801552,0.000399,7]
[327620132,1716253885136,-153.7801552,0.000399,7]
[327620133,1716253885146,-153.7801552,0.000399,7]
[327620134,1716253885156,-153.7801552,0.000399,7]
[327620135,1716253885166,-154.28,0.000399,7]
[327620136,1716253885176,-338.39134145,0.000399,7]
[327620137,1716253885206,-338.39134145,0.000399,7]
[327620138,1716253885216,-338.39134145,0.000399,7]
[327620139,1716253885226,-338.39134145,0.000399,7]
[327620140,1716253885236,-338.39134145,0.000399,7]
[327620141,1716253885246,-338.39134145,0.000399,7]
[327620142,1716253885257,-338.39134145,0.000399,7]
[327620143,1716253885267,-338.39134145,0.000399,7]
[327620144,1716253885277,-1586.59162548,0.000399,2]
[327620145,1716253885287,-186.4871722,0.000399,7]
[327620146,1716253885297,-186.4871722,0.000399,7]
[327620147,1716253885307,-186.98,0.000399,7]
[327620148,1716253885317,-159.95329046,0.000399,7]
[327620149,1716253885326,-159.95329046,0.000399,7]
[327620150,1716253885336,-159.95329046,0.000399,7]
[327620151,1716253885346,-159.95329046,0.000399,7]
[327620152,1716253885355,-159.95329046,0.000399,7]
[327620153,1716253885365,-159.95329046,0.000399,7]
[327620154,1716253885375,-1000.0,0.000399,7]
[327620155,1716253885385,-156.43374057,0.000399,7]
[327620156,1716253885395,-154.16456996,0.000399,7]
[327620157,1716253885405,-154.16456996,0.000399,7]
[327620158,1716253885415,-154.16456996,0.000399,7]
[327620159,1716253885425,-154.16456996,0.000399,7]
[327620160,1716253885435,-154.66,0.000399,7]
[327620161,1716253885447,-154.23956996,0.000399,7]
[327620162,1716253885457,-154.23956996,0.000399,7]
[327620163,1716253885467,-154.23956996,0.000399,7]
[327620164,1716253885477,-154.23956996,0.000399,7]
[327620165,1716253885487,-154.23956996,0.000399,7]
[327620166,1716253885497,-154.23956996,0.000399,7]
[327620167,1716253885507,-154.23956996,0.000399,7]
[327620168,1716253885517,-154.23956996,0.000399,7]
[327620169,1716253885528,-7498.22919335,0.000399,2]
[327620170,1716253885539,-1680.75416143,0.000399,2]
[327620171,1716253885549,-3988.684,0.0003993,2]
[327620172,1716253885560,-151.91,0.00039934,2]
[327620173,1716253885570,-338.39134145,0.00039961,7]
[327620174,1716253885580,-154.23956996,0.00039961,7]
[327620175,1716253885590,-150.0,0.00039968,7]
[327620176,1716253885600,-12720.9128823,0.00039973,2]
[327620177,1716253885610,-9888.4704956,0.00039973,2]
[327620178,1716253885620,-7056.0281089,0.00039973,2]
[327620179,1716253885630,-20874.2084829,0.00039973,2]
[327620180,1716253885640,-16232.2804269,0.00039973,2]
[327620181,1716253885650,-621.442955,0.00039973,14]
[327620182,1716253885661,-621.442955,0.00039973,14]
[327620183,1716253885671,-81485.0391407,0.00039973,2]
[327620184,1716253885681,-62209.9128468,0.00039973,2]
[327620185,1716253885691,-4962.4889795,0.00039973,2]
[327620186,1716253885707,-3788.6219381,0.00039973,2]
[327620187,1716253885721,-771.0,0.00039974,20]
[327620188,1716253885731,-466.0,0.00039974,20]
[327620189,1716253885742,-680.98315092,0.0003998,30]
[327620190,1716253885753,-3279.11142401,0.0003999,2]
[327620191,1716253885764,-1587.15228477,0.00039999,13]
[327620192,1716253885775,-150.0,0.00039999,2]
[327620193,1716253885785,-150.0,0.00039999,2]
[327620194,1716253885795,-150.0,0.00039999,2]
[327620195,1716253885805,-150.0,0.00039999,2]
[327620196,1716253885816,-150.0,0.00039999,2]
[327620197,1716253885826,-150.0,0.00039999,2]
[327620198,1716253885837,-150.0,0.00039999,2]
[327620199,1716253885847,-150.0,0.00039999,2]
[327620200,1716253885857,-150.0,0.00039999,2]
[327620201,1716253885867,-150.0,0.00039999,2]
[327620202,1716253885877,-150.0,0.00039999,2]
[327620203,1716253885887,-150.0,0.00039999,2]
[327620204,1716253885897,-150.0,0.00039999,2]
[327620205,1716253885907,-50000.0,0.0004,20]
[327620206,1716253885916,-1647.56620154,0.0004,30]
[327620207,1716253886409,-930.28123728,0.0004,30]
[327620208,1716253886475,-1790.23,0.00038904,6]
[327620209,1716253886486,-500.0,0.00039726,6]
[327620210,1716253886495,-312.88352494,0.0004,30]
[327620211,1716253886507,-2032.2,0.0004,30]
[327620212,1716253886869,-500.0,0.00038356,6]
[327620213,1716253886878,-354.00364477,0.0004,30]
[327620214,1716253886891,-346.09482282,0.0004,30]
[327620215,1716253887691,-812.2800005,0.00037227,2]
[327620216,1716253887707,-521.05335448,0.00037227,2]
[327620217,1716253887723,-499.23058444,0.00038256,2]
[327620218,1716253887734,-5223.48001556,0.00038256,2]
[327620219,1716253887743,-500.0,0.00038356,6]
[327620220,1716253887752,-500.0,0.00038356,6]
[327620221,1716253887763,-500.0,0.00038356,6]
[327620222,1716253887772,-500.0,0.00038356,6]
[327620223,1716253887782,-500.0,0.0003863,6]
[327620224,1716253887791,-500.0,0.0003863,6]
[327620225,1716253887801,-500.0,0.0003863,6]
[327620226,1716253887811,-500.0,0.0003863,6]
[327620227,1716253887821,-500.0,0.0003863,6]
[327620228,1716253887831,-500.0,0.00038904,6]
[327620229,1716253887840,-500.0,0.00038904,6]
[327620230,1716253887849,-500.0,0.00038904,6]
[327620231,1716253887859,-500.0,0.00038904,6]
[327620232,1716253887868,-1790.23,0.00039178,6]
[327620233,1716253887877,-500.0,0.00039178,6]
[327620234,1716253887887,-500.0,0.00039178,6]
[327620235,1716253887896,-500.0,0.00039178,6]
[327620236,1716253887905,-500.0,0.00039178,6]
[327620237,1716253887915,-178.54738462,0.00039352,2]
[327620238,1716253887925,-2701.85547156,0.00039451,2]
[327620239,1716253887935,-1790.23,0.00039452,6]
[327620240,1716253887947,-500.0,0.00039452,6]
[327620241,1716253887958,-500.0,0.00039452,6]
[327620242,1716253887967,-187.38764259,0.00039452,6]
[327620243,1716253887979,-312.61235741,0.00039452,6]
[327620244,1716253887989,-500.0,0.00039452,6]
[327620245,1716253887998,-1790.23,0.00039726,6]
[327620246,1716253888008,-500.0,0.00039726,6]
[327620247,1716253888018,-500.0,0.00039726,6]
[327620248,1716253888027,-500.0,0.00039726,6]
[327620249,1716253888037,-44376.97056865,0.0004,30]
[327620250,1716253888046,-155.0,0.0004,15]
[327620251,1716253888056,-194.98659957,0.0004,30]
[327620252,1716253888065,-22206.73478281,0.0004,4]
[327620253,1716253888075,-1808.58339708,0.0004,4]
[327620254,1716253888084,-5118.38331679,0.0004,4]
[327620255,1716253888093,-2486.52355247,0.0004,15]
[327620256,1716253888103,-242.01795893,0.0004,2]
[327620257,1716253888112,-2864.99003339,0.0004,20]
[327620258,1716253888121,-317213.55045123,0.0004,15]
[327620259,1716253888135,-546.26449338,0.0004,15]
[327620260,1716253888186,-500.0,0.00038356,6]
[327620261,1716253888198,-500.0,0.00039726,6]
[327620262,1716253888207,-94978.975498,0.0004,15]
[327620263,1716253888344,-286.77285715,0.0003863,6]
[327620264,1716253888356,-213.22714285,0.0003863,6]
[327620265,1716253888367,-489.29187735,0.0004,15]
[327620266,1716253888379,-446.11599517,0.0004,15]
[327620267,1716253888391,-4722.79215003,0.0004,15]
[327620268,1716253888402,-4778.23229343,0.0004,15]
[327620269,1716253888642,-160.61,0.00038346,10]
[327620270,1716253888652,-500.0,0.00038356,6]
[327620271,1716253888663,-500.0,0.00038356,6]
[327620272,1716253888672,-500.0,0.00038356,6]
[327620273,1716253888681,-500.0,0.00038356,6]
[327620274,1716253888691,-500.0,0.0003863,6]
[327620275,1716253888703,-500.0,0.0003863,6]
[327620276,1716253888715,-500.0,0.0003863,6]
[327620277,1716253888724,-500.0,0.0003863,6]
[327620278,1716253888734,-500.0,0.00038904,6]
[327620279,1716253888744,-177.24713563,0.00038904,6]
[327620280,1716253888755,-500.0,0.00038904,6]
[327620281,1716253888764,-500.0,0.00038904,6]
[327620282,1716253888773,-500.0,0.00038904,6]
[327620283,1716253888783,-500.0,0.00039178,6]
[327620284,1716253888792,-500.0,0.00039178,6]
[327620285,1716253888802,-500.0,0.00039178,6]
[327620286,1716253888811,-500.0,0.00039178,6]
[327620287,1716253888821,-500.0,0.00039452,6]
[327620288,1716253888830,-500.0,0.00039452,6]
[327620289,1716253888840,-404.86327828,0.00039452,6]
[327620290,1716253888850,-308.84,0.00039452,6]
[327620291,1716253888859,-500.0,0.00039726,6]
[327620292,1716253888868,-206736.74206021,0.0004,15]
[327620293,1716253888887,-965.04287005,0.0004,15]
[327620294,1716253888961,-1757.34489029,0.0004,15]
[327620295,1716253888975,-26414.70620432,0.0004,15]
[327620296,1716253888986,-10281.26510385,0.0004,15]
[327620297,1716253888998,-1850.25890307,0.0004,15]
[327620298,1716253889009,-9491.1,0.0004,15]
[327620299,1716253889020,-4506.06258621,0.0004,15]
[327620300,1716253889032,-276.90558802,0.0004,15]
[327620301,1716253889043,-1847.10000001,0.0004,15]
[327620302,1716253889057,-500.0,0.00038356,6]
[327620303,1716253889068,-277.12840395,0.0004,15]
[327620304,1716253889079,-404.4192757,0.0004,15]
[327620305,1716253889350,-2e-08,0.0004,15]
[327620306,1716253893134,2547.28889531,0.00028767,2]
[327620307,1716253893366,303.668444,0.00030832,2]
[327620308,1716253893469,303.668444,0.00031218,2]
[327620309,1716253893671,303.668444,0.00031603,2]
[327620310,1716253893855,303.668444,0.00031988,2]
[327620311,1716253893933,303.668444,0.00032374,2]
[327620312,1716253894363,1542.729638,0.00030832,2]
[327620313,1716253894425,1542.729638,0.00031218,2]
[327620314,1716253894477,1542.729638,0.00031603,2]
[327620315,1716253894539,1542.729638,0.00031988,2]